bitfinex/quotes_ETHUSD_20250404
["timestamp","ask_amount","ask_price","bid_price","bid_amount"]
[1743780518118,3.0,1805.3,1804.5,5.54151]
[1743780518320,5.54049,1804.9,1804.3,0.8032]
[1743780518520,5.54049,1804.9,1804.5,5.54167]
[1743780518757,5.54049,1804.9,1804.4,5.54195]
[1743780518758,5.54094,1804.8,1804.4,5.54195]
[1743780518943,11.08194,1804.8,1804.4,5.54195]
[1743780519142,5.54094,1804.8,1804.4,5.54195]
[1743780519350,5.54018,1805.0,1804.1,12.67004471]
[1743780519540,5.54079,1804.8,1804.4,5.54193]
[1743780519746,5.54114,1804.7,1804.3,5.54216]
[1743780520070,6.692877,1805.0,1804.5,5.54157]
[1743780520222,5.98421,1805.1,1804.7,5.5409]
[1743780520426,0.4441,1805.1,1804.8,5.54049]
[1743780520656,0.4441,1805.1,1804.9,5.54038]
[1743780520862,5.98411,1805.1,1804.7,5.54106]
[1743780521061,5.98396,1805.1,1804.6,5.54118]
[1743780521263,5.54018,1805.0,1804.6,5.54114]
[1743780521461,0.4441,1805.1,1804.9,5.54045]
[1743780521670,5.53925,1805.3,1805.0,5.54016]
[1743780521879,5.53925,1805.3,1804.9,5.54038]
[1743780522049,5.98322,1805.4,1804.9,5.54028]
[1743780522374,11.52238,1805.4,1805.0,5.54014]
[1743780522538,0.4441,1805.4,1804.8,5.54074]
[1743780522738,3.0,1805.3,1804.6,0.554118]
[1743780522939,5.54058,1804.9,1804.4,5.55304471]
[1743780523167,5.54088,1804.8,1804.4,5.54171]
[1743780523353,0.4441,1804.7,1804.3,5.54231]
[1743780523677,5.54165,1804.6,1804.2,6.80959447]
[1743780523879,0.4441,1804.7,1804.2,6.80959447]
[1743780523880,5.98525,1804.7,1804.3,5.5423]
[1743780524542,5.98525,1804.7,1804.2,5.54259]
[1743780524543,5.54156,1804.6,1804.2,11.08518]
[1743780524886,5.98522,1804.7,1804.3,5.54228]
[1743780525069,5.98522,1804.7,1804.3,11.08449]
[1743780525400,5.54152,1804.6,1804.0,1.108654]
[1743780525578,5.54152,1804.6,1804.2,5.54239]
[1743780525880,0.4441,1804.7,1804.0,1.108654]
[1743780526076,5.54275,1804.2,1803.7,5.54402]
[1743780526284,0.4441,1804.4,1803.7,5.54401]
[1743780526583,0.4441,1804.4,1803.6,5.54446]
[1743780526584,11.08611,1804.1,1803.6,5.5443]
[1743780526872,5.54262,1804.2,1803.8,5.54383]
[1743780527071,5.54385,1803.8,1803.4,5.545]
[1743780527278,3.4441,1804.4,1803.3,0.7501]
[1743780527480,0.4441,1804.4,1804.1,5.54282]
[1743780527773,0.4441,1804.7,1804.4,5.54182]
[1743780528082,0.4441,1804.7,1804.2,5.54259]
[1743780528250,0.4441,1804.7,1804.1,0.60970274]
[1743780528458,5.98529,1804.7,1804.4,5.5419]
[1743780528652,5.5415,1804.6,1804.2,5.54251]
[1743780529043,5.5415,1804.6,1804.2,11.08502]
[1743780529269,0.4441,1804.7,1804.4,5.54189]
[1743780529866,3.4441,1804.7,1804.2,1.1639302]
[1743780530112,5.54171,1804.5,1804.2,5.54256]
[1743780530481,5.54139,1804.6,1803.8,5.55304471]
[1743780530684,5.54383,1803.9,1803.5,5.54476]
[1743780530887,5.54328,1804.0,1803.6,0.554476]
[1743780531067,5.54328,1804.0,1803.6,11.08869]
[1743780531403,5.54366,1803.9,1803.6,5.54445]
[1743780531595,5.54328,1804.0,1803.6,5.54445]
[1743780531796,5.54365,1803.9,1803.5,11.08936]
[1743780532193,5.54326,1804.0,1803.6,5.54434]
[1743780532396,5.54297,1804.1,1803.7,5.54407]
[1743780532590,5.54297,1804.1,1803.7,5.544]
[1743780532776,5.54297,1804.1,1803.8,5.54384]
[1743780533096,0.4441,1804.2,1803.9,5.54337]
[1743780533277,0.4441,1804.2,1804.0,5.54316]
[1743780533471,5.54205,1804.4,1804.0,5.5432]
[1743780533676,5.54227,1804.4,1804.0,5.5432]
[1743780533884,0.4441,1804.5,1804.2,5.54241]
[1743780534210,0.4441,1804.5,1803.6,5.54446]
[1743780534211,0.4441,1804.5,1804.3,5.5422]
[1743780534378,5.98503,1804.8,1804.4,5.542]
[1743780534583,5.98503,1804.8,1804.3,5.54214]
[1743780534584,5.54128,1804.7,1804.3,5.54214]
[1743780534906,5.53956,1805.2,1804.8,5.54064]
[1743780535072,5.53956,1805.2,1804.7,5.54095]
[1743780535073,5.54007,1805.1,1804.7,5.54095]
[1743780535427,5.53957,1805.2,1804.8,5.54064]
[1743780535585,5.54072,1804.9,1804.4,11.09482471]
[1743780535781,6.437917,1805.2,1804.8,5.54076]
[1743780535782,5.53997,1805.1,1804.8,5.54076]
[1743780536096,5.54055,1804.9,1804.5,5.54152]
[1743780536403,11.08122,1804.9,1804.5,5.54152]
[1743780536609,5.54055,1804.9,1804.5,5.54152]
[1743780536812,5.54055,1804.9,1804.5,11.08306]
[1743780537013,5.5402,1805.0,1804.3,5.54228]
[1743780537219,5.54152,1804.6,1804.2,0.8152]
[1743780537425,5.98395,1805.1,1804.2,0.8152]
[1743780537426,5.54111,1804.7,1804.3,5.54214]
[1743780537579,5.54158,1804.6,1804.2,5.54249]
[1743780537779,5.54158,1804.6,1804.2,11.085]
[1743780538010,5.54119,1804.7,1804.4,5.54186]
[1743780538217,5.54091,1804.8,1804.4,5.54186]
[1743780538522,1.108142,1804.8,1804.2,5.54246]
[1743780538676,3.0,1804.9,1804.3,0.0554193]
[1743780538882,5.54079,1804.8,1804.4,11.08369]
[1743780539124,5.54079,1804.8,1804.4,5.5418]
[1743780539622,3.0,1804.6,1804.0,5.54308]
[1743780539927,0.4441,1804.3,1803.6,0.7761]
[1743780540079,5.54273,1804.2,1803.5,0.05543851]
[1743780540275,5.54294,1804.1,1803.8,5.54372]
[1743780540513,11.08557,1804.2,1803.8,5.54372]
[1743780540827,8.98643,1804.3,1803.9,5.54342]
[1743780541004,8.54223,1804.4,1804.0,5.54321]
[1743780541316,8.54223,1804.4,1804.0,5.54306]
[1743780541505,5.54181,1804.5,1804.1,5.54268]
[1743780541820,5.54213,1804.4,1804.1,5.54268]
[1743780542130,5.54213,1804.4,1803.9,0.554342]
[1743780542131,5.54238,1804.3,1803.9,5.5434]
[1743780542306,5.54231,1804.3,1803.9,11.08679]
[1743780542620,5.54231,1804.3,1803.9,5.54336]
[1743780542922,8.9855,1804.6,1803.9,5.54336]
[1743780542923,5.54187,1804.5,1804.2,5.54247]
[1743780543228,5.98554,1804.6,1804.0,5.54323]
[1743780543429,5.98482,1804.9,1804.5,5.5416]
[1743780543715,5.54089,1804.8,1804.5,5.5416]
[1743780543912,5.54081,1804.8,1804.5,5.54158]
[1743780544123,11.0818,1804.8,1804.4,5.54189]
[1743780544340,8.98472,1804.9,1804.5,5.54151]
[1743780544495,0.4441,1804.9,1804.6,5.54116]
[1743780544700,0.4441,1804.9,1804.6,5.54115]
[1743780544902,5.98458,1804.9,1804.5,11.08319]
[1743780545141,0.4441,1804.9,1804.6,5.54128]
[1743780545456,5.54118,1804.7,1804.4,5.54184]
[1743780545736,5.54118,1804.7,1803.7,5.54412]
[1743780545737,5.54309,1804.1,1803.6,6.30799]
[1743780545937,0.4441,1804.3,1803.5,5.54472]
[1743780545938,5.54363,1803.9,1803.5,5.54472]
[1743780546107,5.54363,1803.9,1803.3,0.7638]
[1743780546108,5.54312,1804.1,1803.6,5.54441]
[1743780546308,0.4441,1804.3,1803.3,3.7638]
[1743780546309,3.4441,1804.3,1803.3,3.7638]
[1743780546632,5.54272,1804.2,1803.8,5.54383]
[1743780546805,5.54296,1804.1,1803.7,5.54406]
[1743780547012,5.54382,1803.9,1803.5,5.54466]
[1743780547399,5.54384,1803.9,1803.4,5.9213]
[1743780547742,5.54354,1803.9,1803.5,5.54466]
[1743780547911,5.54354,1803.9,1803.5,5.54462]
[1743780548253,5.54354,1803.9,1803.5,5.54472]
[1743780548565,5.54446,1803.6,1803.4,0.37638]
[1743780548854,3.4441,1804.0,1803.3,0.7931]
[1743780548995,3.4441,1804.0,1803.7,5.54413]
[1743780549421,0.4441,1804.0,1803.7,5.54399]
[1743780549702,0.4441,1804.0,1803.7,5.54411]
[1743780550004,0.4441,1804.0,1803.4,5.54508]
[1743780550215,5.54472,1803.6,1803.2,11.09096]
[1743780550599,5.54492,1803.5,1803.1,11.14186]
[1743780550800,5.54519,1803.4,1803.1,0.05]
[1743780551212,5.54519,1803.4,1803.1,5.596]
[1743780551533,5.5454,1803.3,1803.1,0.05]
[1743780552219,5.54569,1803.2,1803.1,0.05]
[1743780552643,8.98979,1803.2,1803.1,0.05]
[1743780553149,5.5487,1802.3,1802.1,0.05]
[1743780553308,0.4441,1802.5,1802.2,5.5486]
[1743780553508,7.4401,1802.8,1802.2,5.5486]
[1743780553710,5.54758,1802.6,1802.3,5.54846]
[1743780553953,12.98719,1802.8,1802.4,5.54808]
[1743780554132,18.53437,1802.8,1802.3,5.54829]
[1743780554338,18.53437,1802.8,1802.4,5.54812]
[1743780554662,5.54733,1802.7,1802.2,6.10844]
[1743780554822,5.54733,1802.7,1802.3,5.54843]
[1743780555012,12.98703,1802.8,1802.4,5.54813]
[1743780555218,0.4441,1802.8,1802.5,5.54771]
[1743780555538,8.54664,1802.9,1802.5,5.54771]
[1743780555745,3.0,1803.0,1802.1,5.599]
[1743780555927,0.4441,1803.1,1802.5,0.7684]
[1743780556256,0.4441,1803.4,1802.7,5.5472]
[1743780556447,5.54457,1803.6,1803.2,5.54564]
[1743780556644,5.98827,1803.7,1803.3,5.54525]
[1743780556845,5.54454,1803.6,1803.2,5.54564]
[1743780557633,5.54454,1803.6,1803.2,11.09115]
[1743780557842,5.54489,1803.5,1803.1,6.32199]
[1743780558162,5.54527,1803.4,1802.9,5.5466]
[1743780558361,5.54551,1803.3,1802.9,5.5466]
[1743780558522,5.54494,1803.5,1803.0,5.5463]
[1743780558722,5.54515,1803.4,1803.1,5.54599]
[1743780558948,3.0,1803.5,1803.0,5.54621]
[1743780559131,3.0,1803.5,1803.0,0.554621]
[1743780559347,3.0,1803.6,1802.9,5.54649]
[1743780559551,5.54477,1803.5,1803.1,5.54599]
[1743780559760,8.54452,1803.6,1803.2,5.54554]
[1743780559964,8.54467,1803.6,1803.1,11.09177]
[1743780560267,0.4441,1803.7,1802.7,5.54697]
[1743780560268,5.54582,1803.2,1802.7,5.54697]
[1743780560427,5.54659,1803.0,1802.5,5.54775]
[1743780560772,5.54663,1802.9,1802.5,5.54782]
[1743780561067,5.54632,1803.0,1802.6,5.54749]
[1743780561265,5.54676,1802.9,1802.5,5.54765]
[1743780561455,6.101306,1802.9,1802.2,1.375]
[1743780561768,6.101306,1802.9,1802.5,11.0953]
[1743780561963,5.98982,1803.2,1802.7,5.54722]
[1743780562139,5.54611,1803.1,1802.7,5.54704]
[1743780562335,5.54632,1803.0,1802.6,5.54751]
[1743780562535,5.54632,1803.0,1802.6,5.54742]
[1743780562852,5.5461,1803.1,1802.7,5.54716]
[1743780563052,7.12012586,1803.1,1802.7,5.54716]
[1743780563369,7.12026586,1803.1,1802.7,5.54716]
[1743780563550,5.54607,1803.1,1802.7,11.09423]
[1743780563746,5.54607,1803.1,1802.7,5.54707]
[1743780563937,5.54625,1803.1,1802.7,5.54707]
[1743780564138,5.54625,1803.1,1802.7,5.54706]
[1743780564338,5.54625,1803.1,1802.2,6.36371]
[1743780564339,5.98981,1803.2,1802.8,5.54679]
[1743780564541,6.843377,1803.5,1803.1,5.54583]
[1743780564839,6.843357,1803.5,1803.1,11.09183]
[1743780565047,6.843357,1803.5,1803.2,5.54545]
[1743780565048,5.98888,1803.5,1803.2,5.54545]
[1743780565253,0.4441,1803.5,1803.3,5.54527]
[1743780565481,0.4441,1803.5,1802.7,6.34386]
[1743780565482,0.4441,1803.5,1803.1,5.54594]
[1743780565648,0.44065659,1803.5,1802.9,5.6085036]
[1743780565865,0.44065659,1803.5,1803.3,5.54524]
[1743780566049,0.44065659,1803.5,1802.7,0.7968]
[1743780566250,5.54528,1803.4,1803.0,5.54623]
[1743780566555,5.54556,1803.3,1802.9,5.54649]
[1743780566774,0.44065659,1803.5,1802.7,0.7968]
[1743780566975,5.54399,1803.8,1803.4,5.54508]
[1743780567151,5.54419,1803.7,1803.3,11.09055]
[1743780567357,5.54417,1803.7,1803.3,5.54538]
[1743780567557,0.42160673,1803.7,1802.9,5.54646]
[1743780567876,5.54633,1803.0,1802.6,5.54729]
[1743780568048,11.0929,1803.0,1802.6,5.54729]
[1743780568252,3.0,1803.3,1802.6,5.54729]
[1743780568253,5.54614,1803.1,1802.7,5.5471]
[1743780568452,5.96471332,1803.2,1802.8,5.54679]
[1743780568653,8.54541,1803.3,1803.0,5.54627]
[1743780568847,12.98372,1803.4,1803.0,5.54627]
[1743780569061,0.4406,1803.4,1803.1,5.54596]
[1743780569262,5.98579,1803.4,1803.1,5.54596]
[1743780569490,5.98579,1803.4,1803.0,5.54625]
[1743780569667,5.5455,1803.3,1802.9,5.5464]
[1743780570091,12.129649,1803.4,1803.0,5.5463]
[1743780570392,5.54543,1803.3,1802.9,5.5464]
[1743780570591,5.54543,1803.3,1802.9,11.09289]
[1743780570793,3.4406,1803.4,1802.5,0.792]
[1743780570980,5.54559,1803.3,1802.9,5.54656]
[1743780571302,5.54656,1803.0,1802.5,6.33973]
[1743780571602,5.54656,1803.0,1802.2,8.97397309]
[1743780571603,0.4406,1802.9,1802.2,0.8274]
[1743780571749,5.98732,1802.9,1802.5,5.54756]
[1743780571953,5.54695,1802.8,1802.5,5.54756]
[1743780572184,5.54695,1802.8,1802.4,11.09618]
[1743780572390,5.54771,1802.6,1802.2,6.37604]
[1743780572563,1.153417,1802.8,1802.5,5.54782]
[1743780573097,6.700357,1802.8,1802.4,5.54812]
[1743780573296,6.700357,1802.8,1802.5,5.54778]
[1743780573907,1.153417,1802.8,1802.5,5.54769]
[1743780574194,0.85031173,1802.9,1802.3,5.54843]
[1743780574364,5.54806,1802.5,1802.2,0.8274]
[1743780574555,5.54837,1802.4,1802.1,0.05]
[1743780574755,0.4406,1802.3,1802.1,0.05]
[1743780575053,8.54877,1802.2,1802.1,0.05]
[1743780575558,8.54877,1802.2,1802.1,1e-05]
[1743780575760,5.55154,1801.3,1801.1,0.05]
[1743780576094,5.55178,1801.3,1801.1,0.05]
[1743780576302,5.55185,1801.2,1801.1,0.05]
[1743780576791,6.406958,1801.3,1801.1,0.05]
[1743780577170,8.9916,1801.5,1801.1,0.05]
[1743780577573,5.55171,1801.3,1801.1,0.05]
[1743780577773,5.55185,1801.2,1801.1,0.05]
[1743780577971,15.99045,1801.2,1801.1,0.05]
[1743780579386,15.99045,1801.2,1800.1,5.60515]
[1743780579387,5.9946,1800.6,1800.1,5.60515]
[1743780579687,5.9946,1800.6,1800.1,0.05]
[1743780579688,5.55419,1800.5,1800.1,0.05]
[1743780579894,0.4406,1800.6,1800.1,0.05]
[1743780580060,5.99354,1800.9,1800.4,5.55409]
[1743780580255,8.55354,1800.7,1800.2,11.10969]
[1743780580526,0.4406,1800.9,1800.7,5.5531]
[1743780580657,25.05,1802.0,1800.7,5.5531]
[1743780580658,0.4406,1802.2,1800.7,5.55339]
[1743780580862,0.4406,1801.6,1800.7,6.34229]
[1743780581063,0.4406,1801.6,1801.3,5.55149]
[1743780581366,5.55108,1801.5,1801.0,5.55235]
[1743780581559,5.55137,1801.4,1800.9,5.55272]
[1743780581760,8.55139,1801.4,1800.9,5.55265]
[1743780581965,8.55093,1801.5,1800.9,5.5527]
[1743780582166,9.57122021,1801.6,1801.1,5.55201]
[1743780582470,9.57122021,1801.6,1800.7,0.7889]
[1743780582471,12.05926202,1801.5,1801.0,5.55227]
[1743780582669,6.50817202,1801.5,1801.1,5.55209]
[1743780582872,7.4426,1801.7,1801.3,5.55154]
[1743780583078,7.4426,1801.7,1801.2,11.10349]
[1743780583079,12.99305,1801.7,1801.2,11.10349]
[1743780583413,3.0,1801.6,1801.1,5.55208]
[1743780583708,3.0,1801.6,1801.2,5.55175]
[1743780583883,3.0,1801.6,1801.2,5.55173]
[1743780584076,0.4406,1801.7,1801.4,5.55122]
[1743780584296,0.4406,1802.0,1801.7,5.55028]
[1743780584462,0.4406,1802.0,1801.6,11.10095]
[1743780584788,0.4406,1802.3,1801.8,5.5498]
[1743780584988,5.98929,1802.3,1801.3,6.31147]
[1743780585302,1.039529,1802.3,1801.6,5.55036]
[1743780585501,5.98907,1802.3,1801.8,5.54987]
[1743780585746,5.98907,1802.3,1801.9,5.54964]
[1743780586048,0.4406,1802.3,1802.0,5.54917]
[1743780586213,7.002,1802.5,1802.2,5.54858]
[1743780586538,7.002,1802.5,1802.2,11.09723]
[1743780586739,13.03848,1802.9,1802.5,5.54785]
[1743780586897,5.54712,1802.8,1802.2,1.109723]
[1743780587094,5.54712,1802.8,1802.3,5.54829]
[1743780587326,5.54774,1802.6,1802.1,5.54902]
[1743780587540,5.54774,1802.6,1802.1,11.09794]
[1743780587736,5.54867,1802.3,1801.8,6.33388]
[1743780587940,5.98904,1802.4,1802.0,5.54936]
[1743780588113,0.4406,1802.4,1802.0,5.54909]
[1743780588313,5.98889,1802.4,1802.0,5.54909]
[1743780588514,1.894275,1802.4,1802.0,5.54934]
[1743780588698,1.894275,1802.4,1801.8,0.7839]
[1743780588699,0.4406,1802.7,1802.1,0.05549096]
[1743780588903,5.54808,1802.5,1802.0,11.09843]
[1743780589154,0.4406,1802.7,1801.4,1.425547]
[1743780589323,5.98937,1802.2,1801.7,5.55019]
[1743780589508,5.98937,1802.2,1801.8,5.54985]
[1743780589704,0.4406,1802.2,1801.9,5.54942]
[1743780589924,0.4406,1802.2,1801.9,5.54967]
[1743780590152,5.98877,1802.4,1802.0,5.54927]
[1743780590304,11.53718,1802.4,1802.0,5.54927]
[1743780590499,5.98877,1802.4,1801.9,5.54951]
[1743780590734,5.5492,1802.1,1801.7,5.55005]
[1743780590916,5.54877,1802.2,1801.8,5.54998]
[1743780591115,5.54852,1802.3,1801.9,5.54966]
[1743780591348,5.54755,1802.6,1802.1,5.54893]
[1743780591647,5.5479,1802.5,1802.0,5.54937]
[1743780591940,6.10269,1802.5,1802.1,5.54901]
[1743780592141,5.54787,1802.5,1802.1,5.54901]
[1743780592347,3.4406,1802.7,1801.6,5.55043]
[1743780592505,5.54899,1802.2,1801.7,5.55028]
[1743780592706,5.54961,1802.0,1801.5,5.55075]
[1743780592915,5.54893,1802.2,1801.8,5.54981]
[1743780593237,5.54765,1802.6,1802.1,5.54878]
[1743780593401,5.54791,1802.5,1802.1,5.54878]
[1743780593605,0.4406,1802.8,1802.2,0.05548567]
[1743780593805,0.4406,1802.8,1801.9,0.7878]
[1743780594004,5.54876,1802.3,1801.9,0.7878]
[1743780594246,5.54876,1802.3,1801.6,0.7503]
[1743780594247,5.55002,1801.8,1801.6,0.7503]
[1743780594543,5.55033,1801.7,1801.3,6.30184]
[1743780594710,5.55006,1801.8,1801.3,6.30167]
[1743780594909,5.55046,1801.7,1801.3,5.55137]
[1743780595131,5.55006,1801.8,1801.3,5.55137]
[1743780595327,6.105066,1801.8,1801.3,5.55149]
[1743780595503,5.54967,1802.0,1801.1,5.55216]
[1743780595715,8.5497,1801.9,1801.5,5.55067]
[1743780596028,5.54941,1802.0,1801.6,5.55034]
[1743780596343,3.4406,1802.2,1801.5,0.774]
[1743780596517,11.0991,1802.0,1801.6,5.55044]
[1743780596724,5.54942,1802.0,1801.6,5.55044]
[1743780597044,5.54976,1801.9,1801.5,6.3249]
[1743780597246,6.659241,1802.0,1801.3,0.8138]
[1743780597440,11.09908,1802.0,1801.6,5.5505]
[1743780597740,5.54989,1801.9,1801.5,5.55089]
[1743780597947,5.54916,1802.1,1801.6,5.55036]
[1743780598160,5.54916,1802.1,1801.7,5.55019]
[1743780598454,5.98945,1802.2,1801.5,5.55085]
[1743780598629,5.54908,1802.1,1801.7,5.55016]
[1743780598811,5.54941,1802.0,1801.6,5.55062]
[1743780599012,5.5491,1802.1,1801.7,5.55009]
[1743780599220,5.98941,1802.2,1801.8,5.54995]
[1743780599653,5.54982,1801.9,1801.5,5.5508]
[1743780599956,5.54914,1802.1,1801.3,0.8138]
[1743780600158,0.4406,1802.2,1801.3,0.8138]
[1743780600326,0.4406,1802.2,1801.3,6.36509]
[1743780600528,5.54988,1801.9,1801.4,5.5512]
[1743780600735,5.55106,1801.5,1801.1,5.55198]
[1743780601052,5.99091,1801.7,1801.2,5.55165]
[1743780601252,0.4406,1802.3,1802.1,5.54896]
[1743780601463,0.4406,1803.1,1802.7,5.54723]
[1743780601617,0.4406,1803.1,1802.5,0.05547409]
[1743780601618,5.54754,1802.6,1802.5,0.05547409]
[1743780601820,5.5475,1802.7,1802.0,0.752]
[1743780602019,0.05,1802.9,1802.4,5.54797]
[1743780602363,0.05,1802.9,1802.8,5.54692]
[1743780602528,5.59675,1802.9,1801.7,5.55013]
[1743780602719,0.05,1802.9,1802.6,5.54753]
[1743780602921,5.54718,1802.8,1802.0,17.74258069]
[1743780603151,5.59669,1802.9,1802.5,5.54763]
[1743780603461,5.59669,1802.9,1802.8,5.54692]
[1743780603462,0.05,1802.9,1802.8,5.54692]
[1743780603973,0.05,1802.9,1802.2,6.37695]
[1743780603974,5.54743,1802.7,1802.2,6.37695]
[1743780604174,5.98754,1802.8,1802.0,0.7874]
[1743780604392,3.4406,1802.8,1802.1,5.54905]
[1743780604663,0.34406,1802.7,1802.0,0.7874]
[1743780604826,5.5487,1802.3,1801.8,5.54982]
[1743780605020,0.4406,1802.4,1801.9,5.54962]
[1743780605255,5.54868,1802.3,1801.9,5.54962]
[1743780605456,5.54942,1802.0,1801.6,6.32706]
[1743780605682,3.4406,1802.4,1801.9,5.54956]
[1743780605886,0.78466,1802.4,1801.6,0.7766]
[1743780606042,5.54893,1802.2,1801.7,5.55007]
[1743780606242,0.78466,1802.4,1801.8,0.05550312]
[1743780606550,0.05,1802.9,1802.6,5.54754]
[1743780606884,0.05,1802.9,1802.8,5.54692]
[1743780607585,0.05,1802.9,1802.8,6.66186268]
[1743780607884,0.05,1802.9,1802.8,5.54692]
[1743780608188,12.54001,1803.8,1802.8,5.54692]
[1743780608189,0.4406,1803.7,1803.4,5.54501]
[1743780608395,5.98495,1803.7,1803.3,5.54522]
[1743780608553,0.05,1803.9,1803.3,5.54522]
[1743780608554,0.05,1803.9,1803.8,5.54385]
[1743780608754,0.05,1803.9,1803.8,5.59929032]
[1743780608954,0.05,1803.9,1803.8,6.71363035]
[1743780609265,0.05,1803.9,1803.8,6.65819003]
[1743780609482,0.05,1803.9,1803.6,0.7895]
[1743780609483,5.59367,1803.9,1803.6,0.7895]
[1743780609794,0.05,1803.9,1803.2,0.8031]
[1743780610100,0.05,1803.9,1803.2,6.34853]
[1743780610297,6.0343,1803.9,1803.4,5.54488]
[1743780610456,6.0343,1803.9,1803.5,5.54463]
[1743780610662,7.192194,1803.9,1803.2,0.8031]
[1743780610863,0.05,1803.9,1803.7,5.5441]
[1743780611099,0.05,1803.9,1803.8,5.54385]
[1743780611267,0.05,1803.9,1803.8,5.59928519]
[1743780611471,0.05,1803.9,1803.8,5.54385]
[1743780612208,0.05,1803.9,1803.7,6.3516]
[1743780612406,0.05,1803.9,1803.5,5.54465]
[1743780612706,0.05,1803.9,1803.7,5.54407]
[1743780613003,0.05,1803.9,1803.7,5.54403]
[1743780613303,0.05,1803.9,1803.8,5.59928585]
[1743780613504,0.05,1803.9,1803.8,5.54385]
[1743780613804,0.05,1803.9,1803.8,5.59927826]
[1743780614109,0.05,1803.9,1803.8,7.8845269]
[1743780614466,0.05,1803.9,1803.6,5.54443]
[1743780614702,0.05,1803.9,1803.8,5.54385]
[1743780615294,0.05,1803.9,1803.8,6.31195]
[1743780616608,0.05,1803.9,1803.6,5.54443]
[1743780616814,5.54079,1804.8,1804.4,5.54186]
[1743780616980,5.54151,1804.6,1804.1,5.54274]
[1743780617176,6.03114,1804.9,1804.1,5.54274]
[1743780617177,5.54084,1804.8,1804.3,5.54212]
[1743780617363,5.54143,1804.6,1804.1,5.54265]
[1743780617570,5.54112,1804.7,1804.2,5.5425]
[1743780617766,1.10819,1804.7,1804.3,11.08443]
[1743780617978,5.54121,1804.7,1804.2,5.54258]
[1743780618211,5.54151,1804.6,1804.2,5.54259]
[1743780618380,3.0,1804.8,1803.9,6.99]
[1743780618567,5.54143,1804.6,1804.2,5.54245]
[1743780618766,5.54123,1804.7,1804.3,5.5421]
[1743780618964,11.936693,1804.7,1804.3,5.5421]
[1743780619207,0.854123,1804.7,1803.9,6.99]
[1743780619415,5.54218,1804.4,1804.0,5.54313]
[1743780619638,5.54262,1804.2,1803.7,11.08779]
[1743780619791,5.98368,1804.1,1803.6,5.54426]
[1743780619986,5.54244,1804.3,1803.9,5.54342]
[1743780620237,5.54332,1804.0,1803.6,5.54424]
[1743780620392,5.54369,1803.9,1803.5,5.54475]
[1743780620586,5.54332,1804.0,1803.3,0.7972]
[1743780620792,5.54208,1804.4,1803.3,0.7972]
[1743780620793,7.4296,1804.6,1803.6,5.54446]
[1743780621003,8.54199,1804.5,1804.0,5.543]
[1743780621205,1.597159,1804.5,1803.7,5.54415]
[1743780621389,5.54284,1804.2,1803.7,5.5439]
[1743780621609,5.54317,1804.1,1803.6,5.54435]
[1743780621928,0.4406,1804.4,1803.7,5.544]
[1743780622130,5.54335,1804.0,1803.6,5.54443]
[1743780622427,5.543,1804.1,1803.7,5.54408]
[1743780622740,5.54555,1803.3,1802.9,6.32458]
[1743780622905,5.54643,1803.0,1802.6,6.3254]
[1743780623103,5.54664,1802.9,1802.5,5.54783]
[1743780623304,0.4406,1802.9,1802.3,0.778]
[1743780623505,5.54775,1802.6,1802.3,0.778]
[1743780623689,5.54823,1802.4,1802.1,0.05]
[1743780623890,5.5484,1802.4,1802.1,0.05]
[1743780624094,5.54705,1802.8,1802.3,5.54834]
[1743780624321,7.4276,1802.9,1802.1,5.5989]
[1743780624640,5.54737,1802.7,1802.1,5.59905]
[1743780624946,6.102177,1802.7,1802.3,5.54834]
[1743780625106,12.97434,1802.9,1802.1,5.59894]
[1743780625308,5.54707,1802.8,1802.3,5.54846]
[1743780625512,5.54743,1802.7,1802.3,5.54846]
[1743780625714,5.54735,1802.7,1802.2,5.54866]
[1743780626022,5.54735,1802.7,1802.3,5.5484]
[1743780626192,5.5476,1802.6,1802.2,5.54861]
[1743780626398,5.54699,1802.8,1802.3,5.54845]
[1743780626699,5.98649,1803.2,1802.7,5.54707]
[1743780626912,0.4406,1803.2,1802.8,5.5467]
[1743780627132,5.98552,1803.5,1803.1,5.54578]
[1743780627454,0.4406,1803.8,1803.6,5.54445]
[1743780627661,12.635295,1804.1,1803.4,5.54494]
[1743780627807,7.092095,1804.1,1803.7,5.54403]
[1743780628017,7.092095,1804.1,1803.7,5.54394]
[1743780628264,1.549165,1804.1,1803.7,5.54394]
[1743780628558,1.108565,1804.1,1803.8,5.54384]
[1743780628724,5.98275,1804.4,1804.0,5.54321]
[1743780629046,0.4406,1804.7,1804.4,5.5419]
[1743780629245,0.05,1804.9,1804.0,5.54309]
[1743780629412,5.54161,1804.6,1804.1,5.54289]
[1743780629621,8.5905,1804.9,1804.1,5.54289]
[1743780629622,0.05,1804.9,1804.1,3.0]
[1743780629821,0.05,1804.9,1804.6,5.54138]
[1743780630063,0.05,1804.9,1804.7,5.54096]
[1743780630265,0.05,1804.9,1804.8,5.54078]
[1743780630827,0.05,1804.9,1804.4,6.34319]
[1743780631064,0.05,1804.9,1804.8,5.54078]
[1743780631224,0.05,1804.9,1804.8,5.59617734]
[1743780631427,1.66492867,1805.7,1805.5,5.53862]
[1743780631734,1.66492867,1805.7,1805.6,5.53832]
[1743780632661,1.66492867,1805.7,1805.5,5.53847]